fUSD/lending_fUSD_20260127
["ID","MTS","AMOUNT","RATE_DAILY","PERIOD"]
[403690056,1769483019531,-224.63899196,0.0001508,2]
[403690057,1769483021501,-157.36015993,0.0001508,2]
[403690058,1769483021525,-142.63984007,0.0001508,2]
[403690059,1769483024014,-185.90449884,0.0001508,2]
[403690060,1769483027484,-153.61384336,0.0001508,2]
[403690061,1769483030178,-17.84181773,0.0001508,2]
[403690062,1769483030202,-167.11279206,0.0001508,2]
[403690063,1769483031729,-298.92588499,0.0001508,2]
[403690064,1769483034764,-33.96132295,0.0001508,2]
[403690065,1769483034789,-120.77772117,0.0001508,2]
[403690066,1769483037579,-301.14995575,0.0001508,2]
[403690067,1769483037608,-31.14155494,0.0001508,2]
[403690068,1769483039413,-182.59317889,0.0001508,2]
[403690069,1769483041221,300.0,0.00015079,2]
[403690070,1769483043424,-158.02750645,0.0001508,2]
[403690071,1769483045564,-128.23775972,0.0001508,2]
[403690072,1769483045590,-91.02941976,0.0001508,2]
[403690073,1769483048469,-252.143357,0.0001508,2]
[403690074,1769483051284,-156.82722324,0.0001508,2]
[403690075,1769483051308,-5.716667,0.0001508,2]
[403690076,1769483053742,-164.37935511,0.0001508,2]
[403690077,1769483057614,-190.59259671,0.0001508,2]
[403690078,1769483061159,869.1781401,0.00014993,2]
[403690079,1769483068147,1861.7959,0.00014981,2]
[403690080,1769483101214,1200.0,0.00015079,2]
[403690081,1769483151349,260.469,0.00014981,2]
[403690082,1769483161435,300.0,0.00015079,2]
[403690083,1769483163182,300.0,0.00015079,2]
[403690084,1769483172766,2882.05857505,0.00014993,2]
[403690085,1769483172791,1132.10267417,0.00014993,2]
[403690099,1769483266989,151.0,0.00015072,2]
[403690100,1769483267607,151.0,0.00015072,2]
[403690101,1769483268215,151.0,0.00015072,2]
[403690102,1769483268810,151.0,0.00015072,2]
[403690103,1769483270205,151.0,0.00015072,2]
[403690104,1769483270558,151.0,0.00015072,2]
[403690105,1769483271151,151.0,0.00015072,2]
[403690106,1769483272073,151.0,0.00015072,2]
[403690107,1769483272508,151.0,0.00015072,2]
[403690108,1769483273100,151.0,0.00015072,2]
[403690109,1769483273698,151.0,0.00015072,2]
[403690110,1769483274293,151.0,0.00015072,2]
[403690111,1769483354172,7055.90732583,0.00014981,2]
[403690112,1769483354201,10000.01,0.00014981,2]
[403690113,1769483354230,10000.01,0.00014981,2]
[403690114,1769483354259,10000.01,0.00014981,2]
[403690115,1769483354288,10000.01,0.00014981,2]
[403690116,1769483354318,10000.01,0.00014981,2]
[403690117,1769483354347,10000.01,0.00014981,2]
[403690118,1769483354381,10000.01,0.00014981,2]
[403690119,1769483354410,10000.01,0.00014981,2]
[403690120,1769483354438,10000.01,0.00014981,2]
[403690121,1769483354482,902944.00267417,0.00014981,2]
[403690122,1769483356994,-180.84504759,0.0001508,2]
[403690123,1769483387855,-24.41495241,0.0001508,2]
[403690124,1769483387884,-300.0,0.0001508,2]
[403690125,1769483403403,275.0,0.0001508,2]
[403690126,1769483407280,-332.4296127,0.0001508,2]
[403690127,1769483407342,-500.0,0.0001508,2]
[403690128,1769483407389,-617.57301075,0.0001508,2]
[403690129,1769483407447,-500.0,0.0001508,2]
[403690130,1769483407486,-500.0,0.0001508,2]
[403690131,1769483407521,-500.0,0.0001508,2]
[403690132,1769483407558,-500.0,0.0001508,2]
[403690133,1769483407593,-500.0,0.0001508,2]
[403690134,1769483407639,-500.0,0.0001508,2]
[403690135,1769483407693,-500.0,0.0001508,2]
[403690136,1769483408965,-397.19291493,0.0001508,2]
[403690137,1769483408996,-500.0,0.0001508,2]
[403690138,1769483409026,-500.0,0.0001508,2]
[403690139,1769483409055,-500.0,0.0001508,2]
[403690140,1769483409084,-500.0,0.0001508,2]
[403690141,1769483409114,-637.7626207,0.0001508,2]
[403690142,1769483413561,-190.80711694,0.00015081,2]
[403690143,1769483415088,-290.61766379,0.00015081,2]
[403690144,1769483418760,-23.52690154,0.00015081,2]
[403690145,1769483418784,-308.29965204,0.00015081,2]
[403690146,1769483422678,-191.70034796,0.00015081,2]
[403690147,1769483422699,-0.85549971,0.00015081,2]
[403690148,1769483424075,-499.14450029,0.00015081,2]
[403690149,1769483424104,-500.0,0.00015081,2]
[403690150,1769483424135,-500.0,0.00015081,2]
[403690151,1769483424164,-500.0,0.00015081,2]
[403690152,1769483424193,-500.0,0.00015081,2]
[403690153,1769483424225,-500.0,0.00015081,2]
[403690154,1769483424255,-500.0,0.00015081,2]
[403690155,1769483424285,-509.44466748,0.00015081,2]
[403690156,1769483424316,-500.0,0.00015081,2]
[403690157,1769483424353,-150.0,0.00015081,2]
[403690158,1769483424384,-182.83166446,0.00015081,2]
[403690159,1769483424676,-317.16833554,0.00015081,2]
[403690160,1769483424711,-500.0,0.00015081,2]
[403690161,1769483426384,-156.4379284,0.00015093,2]
[403690162,1769483429932,-272.44638385,0.00015093,2]
[403690180,1769483431617,-300.75386852,0.00015093,2]
[403690181,1769483431629,-667.08331923,0.00015093,2]
[403690182,1769483431638,-1000.0,0.00015093,2]
[403690183,1769483431648,-500.0,0.00015192,2]
[403690184,1769483431658,-638.74202367,0.00015192,2]
[403690185,1769483431668,-150.00180595,0.00015268,2]
[403690186,1769483431678,-205.26,0.00015354,2]
[403690187,1769483431688,-150.0,0.00015581,2]
[403690188,1769483431697,-152.43835252,0.00015581,2]
[403690189,1769483431708,-205.26,0.00015628,2]
[403690190,1769483431717,-151.0,0.00015835,2]
[403690191,1769483431726,-4409.15172952,0.00015853,2]
[403690192,1769483431735,-205.26,0.00015902,2]
[403690193,1769483431744,-598.35986247,0.00015929,2]
[403690194,1769483431771,-60.79329027,0.00015929,2]
[403690195,1769483431781,-378.25111234,0.0001593,2]
[403690196,1769483431790,-24.48550267,0.00016176,2]
[403690225,1769483432074,-180.81449733,0.00016176,2]
[403690226,1769483432083,-195.0,0.00016211,2]
[403690227,1769483432092,-409.10218947,0.00016338,2]
[403690228,1769483432102,-500.0,0.00016373,2]
[403690229,1769483432111,-500.0,0.00016373,2]
[403690230,1769483432120,-4473.8775,0.00016411,2]
[403690231,1769483432129,-500.86630896,0.00016438,2]
[403690232,1769483432138,-500.0,0.00016438,2]
[403690233,1769483432148,-500.0,0.00016438,2]
[403690234,1769483432157,-500.0,0.00016438,2]
[403690235,1769483432166,-500.0,0.00016438,2]
[403690236,1769483432176,-500.0,0.00016438,2]
[403690237,1769483432185,-500.0,0.00016438,2]
[403690238,1769483432194,-500.0,0.00016438,2]
[403690239,1769483432204,-500.0,0.00016438,2]
[403690240,1769483432213,-500.0,0.00016438,2]
[403690241,1769483432222,-500.0,0.00016438,2]
[403690242,1769483432231,-500.0,0.00016438,2]
[403690243,1769483432240,-500.0,0.00016438,2]
[403690244,1769483432250,-500.0,0.00016438,2]
[403690245,1769483432259,-500.0,0.00016438,2]
[403690246,1769483432268,-500.0,0.00016438,2]
[403690247,1769483432277,-500.0,0.00016438,2]
[403690248,1769483432287,-579.64597421,0.00016438,2]
[403690249,1769483432296,-500.0,0.00016438,2]
[403690250,1769483432306,-500.0,0.00016438,2]
[403690251,1769483432316,-500.0,0.00016438,2]
[403690252,1769483432325,-500.0,0.00016438,2]
[403690253,1769483432334,-500.0,0.00016438,2]
[403690254,1769483432343,-500.0,0.00016438,2]
[403690255,1769483432352,-500.0,0.00016438,2]
[403690256,1769483432362,-500.0,0.00016438,2]
[403690257,1769483432371,-500.0,0.00016438,2]
[403690258,1769483432380,-500.0,0.00016438,2]
[403690259,1769483432390,-500.0,0.00016438,2]
[403690260,1769483432399,-500.0,0.00016438,2]
[403690261,1769483432408,-500.0,0.00016438,2]
[403690262,1769483432417,-500.0,0.00016438,2]
[403690263,1769483432426,-500.0,0.00016438,2]
[403690264,1769483432435,-500.0,0.00016438,2]
[403690265,1769483432444,-500.0,0.00016438,2]
[403690266,1769483432454,-500.0,0.00016438,2]
[403690267,1769483432466,-250.0,0.00016588,2]
[403690268,1769483432476,-1777.53534843,0.00016588,2]
[403690269,1769483432486,-250.0,0.00016588,2]
[403690270,1769483432496,-1142.81160351,0.00016588,2]
[403690271,1769483432505,-200.0,0.00016588,2]
[403690272,1769483432515,-180.84504759,0.00016588,2]
[403690273,1769483432525,-250.0,0.00016589,2]
[403690274,1769483432534,-150.00180595,0.00016645,2]
[403690275,1769483432544,-214.5283673,0.00016785,2]
[403690276,1769483432554,-1000.0,0.0001686,2]
[403690277,1769483432564,-13221.84775918,0.000169,2]
[403690278,1769483432573,-500.0,0.00016912,2]
[403690279,1769483432582,-254.01787946,0.00016921,2]
[403690280,1769483432591,-577.68136073,0.00016921,2]
[403690281,1769483432600,-9999.99,0.00016922,2]
[403690282,1769483432610,-150.99,0.00016922,2]
[403690283,1769483432620,-4014.16124919,0.0001697,2]
[403690284,1769483432629,-2279.8,0.00016995,2]
[403690285,1769483432638,-9617.45,0.00016998,2]
[403690286,1769483432647,-250.0,0.00017,2]
[403690287,1769483432656,-3874.52,0.00017009,2]
[403690288,1769483432666,-868.24,0.00017022,2]
[403690289,1769483432675,-405.78,0.00017051,2]
[403690290,1769483432685,-5142.37,0.00017103,2]
[403690291,1769483432694,-1600.0,0.0001716,2]
[403690292,1769483432704,-578.20924308,0.00017333,2]
[403690293,1769483432714,-250.0,0.00017333,2]
[403690294,1769483432723,-201.93286099,0.00017333,2]
[403690295,1769483432732,-1000.0,0.00017333,2]
[403690296,1769483432742,-250.0,0.00017333,2]
[403690297,1769483432751,-1000.0,0.00017333,2]
[403690298,1769483432760,-202.51461994,0.00017333,2]
[403690299,1769483432769,-250.0,0.00017333,2]
[403690300,1769483432778,-1000.0,0.00017333,2]
[403690301,1769483432788,-250.0,0.00017333,2]
[403690302,1769483432797,-1000.0,0.00017333,2]
[403690303,1769483432807,-250.0,0.00017333,2]
[403690304,1769483432817,-1000.0,0.00017333,2]
[403690305,1769483432827,-250.0,0.00017333,2]
[403690306,1769483432839,-1000.0,0.00017333,2]
[403690307,1769483432848,-250.0,0.00017333,2]
[403690308,1769483432857,-1000.0,0.00017333,2]
[403690309,1769483432866,-250.0,0.00017333,2]
[403690310,1769483432875,-1000.0,0.00017333,2]
[403690311,1769483432884,-250.0,0.00017333,2]
[403690312,1769483432893,-1000.0,0.00017333,2]
[403690313,1769483432903,-250.0,0.00017333,2]
[403690314,1769483432912,-871.93931809,0.00017333,2]
[403690315,1769483432921,-250.0,0.00017333,2]
[403690316,1769483432930,-250.0,0.00017333,2]
[403690317,1769483432939,-174.61919141,0.00017333,2]
[403690318,1769483432948,-250.0,0.00017333,2]
[403690319,1769483432957,-250.0,0.00017333,2]
[403690320,1769483432965,-250.0,0.00017333,2]
[403690321,1769483432974,-250.0,0.00017333,2]
[403690322,1769483432983,-250.0,0.00017333,2]
[403690323,1769483432993,-250.0,0.00017333,2]
[403690324,1769483433003,-250.0,0.00017333,2]
[403690325,1769483433012,-250.0,0.00017333,2]
[403690326,1769483433022,-250.0,0.00017333,2]
[403690327,1769483433031,-250.0,0.00017333,2]
[403690328,1769483433040,-250.0,0.00017333,2]
[403690329,1769483433049,-250.0,0.00017333,2]
[403690330,1769483433062,-3543.0,0.00017333,2]
[403690331,1769483433075,-250.0,0.00017333,2]
[403690332,1769483433084,-250.0,0.00017333,2]
[403690333,1769483433094,-250.0,0.00017333,2]
[403690334,1769483433103,-346.21416368,0.00017333,2]
[403690335,1769483433112,-151.0,0.00017333,2]
[403690336,1769483433122,-250.0,0.00017333,2]
[403690337,1769483433130,-250.0,0.00017333,2]
[403690338,1769483433140,-823.77908852,0.00017333,2]
[403690339,1769483433150,-250.0,0.00017333,2]
[403690340,1769483433159,-250.0,0.00017333,2]
[403690341,1769483433168,-151.0,0.00017333,2]
[403690342,1769483433177,-250.0,0.00017333,2]
[403690343,1769483433186,-250.0,0.00017333,2]
[403690344,1769483433196,-250.0,0.00017333,2]
[403690345,1769483433205,-250.0,0.00017333,2]
[403690346,1769483433214,-250.0,0.00017333,2]
[403690347,1769483433223,-250.0,0.00017333,2]
[403690348,1769483433232,-250.0,0.00017333,2]
[403690349,1769483433241,-250.0,0.00017333,2]
[403690350,1769483433251,-322.6107,0.00017333,2]
[403690351,1769483433260,-250.0,0.00017333,2]
[403690352,1769483433269,-500.0,0.00017333,2]
[403690353,1769483433279,-250.0,0.00017333,2]
[403690354,1769483433287,-500.0,0.00017333,2]
[403690355,1769483433296,-250.0,0.00017333,2]
[403690356,1769483433305,-500.0,0.00017333,2]
[403690357,1769483433314,-250.0,0.00017333,2]
[403690358,1769483433324,-500.0,0.00017333,2]
[403690359,1769483433333,-500.0,0.00017333,2]
[403690360,1769483433343,-500.0,0.00017333,2]
[403690361,1769483433352,-500.0,0.00017333,2]
[403690362,1769483433361,-500.0,0.00017333,2]
[403690363,1769483433370,-500.0,0.00017333,2]
[403690364,1769483433380,-500.0,0.00017333,2]
[403690365,1769483433389,-695.39793187,0.00017333,2]
[403690366,1769483433398,-500.0,0.00017333,2]
[403690367,1769483433407,-500.0,0.00017333,2]
[403690368,1769483433416,-250.0,0.00017333,2]
[403690369,1769483433425,-250.0,0.00017333,2]
[403690370,1769483433434,-250.0,0.00017333,2]
[403690371,1769483433443,-250.0,0.00017333,2]
[403690372,1769483433453,-250.0,0.00017333,2]
[403690373,1769483433462,-250.0,0.00017333,2]
[403690374,1769483433471,-250.0,0.00017333,2]
[403690375,1769483433480,-250.0,0.00017333,2]
[403690376,1769483433489,-250.0,0.00017333,2]
[403690377,1769483433498,-298.9430859,0.00017333,2]
[403690378,1769483433507,-273.46272325,0.00017341,5]
[403690379,1769483433516,-3055.49,0.00017383,2]
[403690380,1769483433524,-159.43753018,0.00017439,2]
[403690381,1769483433534,-150.0,0.00017551,2]
[403690382,1769483433543,-500.0,0.00017589,2]
[403690383,1769483433552,-457.0,0.00017616,2]
[403690384,1769483433562,-168.0,0.00017656,2]
[403690385,1769483433572,-168.0,0.00017754,2]
[403690386,1769483433582,-209.40437684,0.00017881,2]
[403690387,1769483433591,-181.08010149,0.00017881,2]
[403690388,1769483433600,-151.0,0.00017881,2]
[403690389,1769483433610,-854.2589148,0.00017881,2]
[403690390,1769483433619,-168.0,0.00017959,2]
[403690391,1769483433629,-500.0,0.0001799,2]
[403690392,1769483433638,-160.0,0.00018,2]
[403690393,1769483433647,-567.0,0.00018,2]
[403690394,1769483433656,-253.928774,0.00018,2]
[403690395,1769483433665,-168.0,0.00018061,2]
[403690396,1769483433674,-1408.0,0.0001812,2]
[403690397,1769483433683,-3477.0,0.0001812,2]
[403690398,1769483433693,-615.0,0.0001812,2]
[403690399,1769483433702,-184.0,0.00018121,2]
[403690400,1769483433712,-1269.0,0.00018121,2]
[403690401,1769483433721,-917.362,0.00018121,2]
[403690402,1769483433731,-1204.0,0.00018121,2]
[403690403,1769483433740,-2442.0,0.00018121,2]
[403690404,1769483433749,-567.0,0.00018121,2]
[403690405,1769483433759,-587.33249291,0.00018128,2]
[403690406,1769483433769,-5268.0,0.00018213,2]
[403690407,1769483433779,-168.0,0.00018228,2]
[403690408,1769483433788,-3055.49,0.00018253,2]
[403690409,1769483433799,-168.0,0.00018256,2]
[403690410,1769483433808,-5268.0,0.00018264,2]
[403690411,1769483433817,-168.0,0.00018302,2]
[403690412,1769483433829,-5869.0,0.00018315,2]
[403690413,1769483433838,-3533.1,0.00018356,2]
[403690414,1769483433847,-168.0,0.00018396,2]
[403690415,1769483433856,-168.0,0.00018401,2]
[403690416,1769483433865,-210.554,0.00018413,2]
[403690417,1769483433876,-150.047,0.00018413,2]
[403690418,1769483433885,-250.0,0.00018413,2]
[403690419,1769483433895,-150.139,0.00018413,2]
[403690420,1769483433905,-191.447,0.00018413,2]
[403690421,1769483433914,-164.231,0.00018413,2]
[403690422,1769483433923,-250.0,0.00018413,2]
[403690423,1769483433934,-212.542,0.00018413,2]
[403690424,1769483433944,-170.0,0.00018413,2]
[403690425,1769483433954,-230.677,0.00018413,2]
[403690426,1769483433964,-283.80841843,0.00018429,2]
[403690427,1769483433973,-187.78006525,0.00018429,2]
[403690428,1769483433983,-264.32405138,0.00018429,2]
[403690429,1769483433992,-885.86649465,0.00018429,2]
[403690430,1769483434001,-168.0,0.00018434,2]
[403690431,1769483434010,-152.0,0.00018478,3]
[403690432,1769483434019,-168.0,0.00018498,2]
[403690433,1769483434028,-168.0,0.00018547,2]
[403690434,1769483434037,-168.0,0.00018612,2]
[403690435,1769483434046,-567.0,0.00018626,2]
[403690436,1769483434055,-168.0,0.000187,2]
[403690437,1769483434064,-334.5472959,0.00018702,2]
[403690438,1769483434075,-587.33249287,0.00018748,2]
[403690439,1769483434085,-168.0,0.00018809,2]
[403690440,1769483434094,-168.0,0.00018821,2]
[403690441,1769483434103,-168.0,0.00018888,2]
[403690442,1769483434116,-152.0,0.000189,4]
[403690443,1769483434125,-998.21066999,0.0001893,2]
[403690444,1769483434134,-4014.16124919,0.00018947,2]
[403690445,1769483434143,-1000.0,0.00018968,2]
[403690446,1769483434154,-194.72792766,0.00018977,2]
[403690447,1769483434165,-918.64355495,0.00018977,2]
[403690448,1769483434174,-168.0,0.00018999,2]
[403690449,1769483434184,-300.0,0.00019,2]
[403690450,1769483434194,-168.0,0.00019038,2]
[403690451,1769483434203,-200.15546791,0.00019082,2]
[403690452,1769483434213,-3055.49,0.00019122,2]
[403690453,1769483434224,-500.0,0.00019178,2]
[403690454,1769483434233,-500.0,0.00019178,2]
[403690455,1769483434242,-500.0,0.00019178,2]
[403690456,1769483434251,-500.0,0.00019178,2]
[403690457,1769483434261,-500.0,0.00019178,2]
[403690458,1769483434270,-500.0,0.00019178,2]
[403690459,1769483434281,-500.0,0.00019178,2]
[403690460,1769483434291,-500.0,0.00019178,2]
[403690461,1769483434300,-246.53937557,0.00019178,2]
[403690462,1769483434309,-500.0,0.00019178,2]
[403690463,1769483434319,-500.0,0.00019178,2]
[403690464,1769483434328,-500.0,0.00019178,2]
[403690465,1769483434338,-500.0,0.00019178,2]
[403690466,1769483434347,-500.0,0.00019178,2]
[403690467,1769483434356,-500.0,0.00019178,2]
[403690468,1769483434365,-500.0,0.00019178,2]
[403690469,1769483434374,-500.0,0.00019178,2]
[403690470,1769483434383,-500.0,0.00019178,2]
[403690471,1769483434392,-150.0,0.00019178,2]
[403690472,1769483434403,-500.0,0.00019178,2]
[403690473,1769483434414,-500.0,0.00019178,2]
[403690474,1769483434425,-500.0,0.00019178,2]
[403690475,1769483434435,-500.0,0.00019178,2]
[403690476,1769483434445,-500.0,0.00019178,2]
[403690477,1769483434454,-567.0,0.00019253,3]
[403690478,1769483434464,-168.0,0.00019288,2]
[403690479,1769483434476,-1600.0,0.00019305,2]
[403690480,1769483434485,-168.0,0.00019309,2]
[403690481,1769483434493,-168.0,0.00019319,2]
[403690482,1769483434502,-152.0,0.00019323,5]
[403690483,1769483434511,-587.33249287,0.00019367,2]
[403690484,1769483434519,-5268.0,0.00019384,2]
[403690485,1769483434529,-150.00180595,0.00019398,7]
[403690486,1769483434538,-201.93286099,0.00019525,2]
[403690487,1769483434547,-952.63336648,0.00019525,2]
[403690488,1769483434558,-1400.0,0.00019698,7]
[403690489,1769483434567,-2000.0,0.000197,2]
[403690490,1769483434576,-152.0,0.00019745,6]
[403690491,1769483434585,-1386.25399157,0.00019808,2]
[403690492,1769483434595,-659.15315271,0.00019824,2]
[403690493,1769483434605,-567.0,0.00019879,3]
[403690494,1769483434614,-1386.25399157,0.0001989,2]
[403690495,1769483434623,-24518.18605344,0.000199,3]
[403690496,1769483434632,-200.0,0.00019921,2]
[403690497,1769483434641,-1760.96194356,0.0001993,2]
[403690498,1769483434651,-25000.0,0.00019949,3]
[403690499,1769483434660,-1386.25399157,0.00019973,2]
[403690500,1769483434669,-166.66,0.0001998,2]
[403690501,1769483434679,-587.33249287,0.00019987,2]
[403690502,1769483434688,-3055.49,0.00019991,2]
[403690503,1769483434697,-150.0,0.0002,2]
[403690504,1769483434707,-500.0,0.0002,2]
[403690505,1769483434716,-231.51909219,0.0002,2]
[403690506,1769483434725,-200.0,0.0002,2]
[403690507,1769483434734,-500.0,0.00020001,2]
[403690508,1769483434743,-500.0,0.00020002,2]
[403690509,1769483434752,-499.9999,0.00020003,2]
[403690510,1769483434761,-351.56,0.00020027,2]
[403690511,1769483434771,-3000.0,0.00020027,2]
[403690512,1769483434780,-3000.0,0.00020027,7]
[403690513,1769483434790,-3010.5356105,0.00020027,12]
[403690514,1769483434800,-1386.25399157,0.00020027,2]
[403690515,1769483434812,-500.0,0.00020062,2]
[403690516,1769483434823,-500.0,0.00020062,2]
[403690517,1769483434836,-500.0,0.00020062,2]
[403690518,1769483434846,-500.0,0.00020062,2]
[403690519,1769483434856,-500.0,0.00020062,2]
[403690520,1769483434866,-500.0,0.00020062,2]
[403690521,1769483434875,-500.0,0.00020062,2]
[403690522,1769483434884,-500.0,0.00020062,2]
[403690523,1769483434894,-500.0,0.00020062,2]
[403690524,1769483434903,-500.0,0.00020062,2]
[403690525,1769483434912,-500.0,0.00020062,2]
[403690526,1769483435176,-500.0,0.00020062,2]
[403690527,1769483435186,-500.0,0.00020062,2]
[403690528,1769483435197,-500.0,0.00020062,2]
[403690529,1769483435209,-500.0,0.00020062,2]
[403690530,1769483435219,-500.0,0.00020062,2]
[403690531,1769483435228,-500.0,0.00020062,2]
[403690532,1769483435238,-500.0,0.00020062,2]
[403690533,1769483435247,-500.0,0.00020062,2]
[403690534,1769483435257,-500.0,0.00020062,2]
[403690535,1769483435266,-500.0,0.00020062,2]
[403690536,1769483435275,-500.0,0.00020062,2]
[403690537,1769483435285,-500.0,0.00020062,2]
[403690538,1769483435294,-500.0,0.00020062,2]
[403690539,1769483435304,-500.0,0.00020062,2]
[403690540,1769483435314,-515.0,0.00020062,2]
[403690541,1769483435324,-511.0,0.00020062,2]
[403690542,1769483435334,-500.0,0.00020062,2]
[403690543,1769483435343,-500.0,0.00020062,2]
[403690544,1769483435352,-500.0,0.00020062,2]
[403690545,1769483435361,-500.0,0.00020062,2]
[403690546,1769483435370,-500.0,0.00020062,2]
[403690547,1769483435379,-500.0,0.00020062,2]
[403690548,1769483435388,-500.0,0.00020062,2]
[403690549,1769483435397,-500.0,0.00020062,2]
[403690550,1769483435407,-500.0,0.00020062,2]
[403690551,1769483435416,-500.0,0.00020062,2]
[403690552,1769483435427,-500.0,0.00020062,2]
[403690553,1769483435436,-500.0,0.00020062,2]
[403690554,1769483435445,-500.0,0.00020062,2]
[403690555,1769483435455,-500.0,0.00020062,2]
[403690556,1769483435465,-500.0,0.00020062,2]
[403690557,1769483435474,-500.0,0.00020062,2]
[403690558,1769483435484,-613.0,0.00020062,2]
[403690559,1769483435497,-500.0,0.00020062,2]
[403690560,1769483435518,-500.0,0.00020062,2]
[403690561,1769483435536,-500.0,0.00020062,2]
[403690562,1769483435551,-500.0,0.00020062,2]
[403690563,1769483435561,-500.0,0.00020062,2]
[403690564,1769483435570,-500.0,0.00020062,2]
[403690565,1769483435579,-500.0,0.00020062,2]
[403690566,1769483435588,-500.0,0.00020062,2]
[403690567,1769483435597,-346.92554585,0.00020071,2]
[403690568,1769483435606,-599.60298507,0.00020072,2]
[403690569,1769483435616,-3543.0,0.00020072,2]
[403690570,1769483435626,-151.0,0.00020072,2]
[403690571,1769483435636,-721.12765535,0.00020072,2]
[403690572,1769483435645,-209.40437684,0.00020073,2]
[403690573,1769483435655,-987.88080104,0.00020073,2]
[403690574,1769483435664,-560.45,0.00020076,2]
[403690575,1769483435673,-1386.25399157,0.0002011,2]
[403690576,1769483435682,-152.0,0.00020167,7]
[403690577,1769483435691,-1386.25399157,0.00020192,2]
[403690578,1769483435700,-173.63,0.00020221,2]
[403690579,1769483435710,-2000.0,0.00020246,7]
[403690580,1769483435719,-1386.25399157,0.00020274,2]
[403690581,1769483435728,-560.45,0.0002035,2]
[403690582,1769483435737,-1386.25399157,0.00020356,2]
[403690583,1769483435746,-638.94346563,0.00020391,2]
[403690584,1769483435759,-1386.25399157,0.00020438,2]
[403690585,1769483435768,-868.08,0.0002047,2]
[403690586,1769483435777,-176.14,0.00020486,2]
[403690587,1769483435787,-567.0,0.00020505,4]
[403690588,1769483435796,-1000.0,0.0002052,7]
[403690589,1769483435805,-1386.25399157,0.00020521,2]
[403690590,1769483435814,-317.00923808,0.00020551,2]
[403690591,1769483435823,-152.0,0.00020589,8]
[403690592,1769483435833,-1386.25399157,0.00020603,2]
[403690593,1769483435844,-587.33249287,0.00020606,2]
[403690594,1769483435853,-217.15233878,0.00020621,2]
[403690595,1769483435862,-1024.43239068,0.00020621,2]
[403690596,1769483435871,-560.45,0.00020624,2]
[403690597,1769483435881,-166.66,0.00020639,2]
[403690598,1769483435890,-1386.25399157,0.00020685,2]
[403690599,1769483435898,-868.08,0.00020744,2]
[403690600,1769483435908,-262.45,0.00020759,2]
[403690601,1769483435918,-150.00180595,0.00020774,11]
[403690602,1769483435926,-1400.0,0.00020794,7]
[403690603,1769483435935,-3055.49,0.0002086,2]
[403690604,1769483435945,-4014.16124919,0.00020923,2]
[403690605,1769483435953,-500.0,0.00020996,2]
[403690606,1769483435962,-500.0,0.00020996,2]
[403690607,1769483435971,-500.0,0.00020996,2]
[403690608,1769483435980,-500.0,0.00020996,2]
[403690609,1769483435989,-500.0,0.00020996,2]
[403690610,1769483435998,-500.0,0.00020996,2]
[403690611,1769483436008,-500.0,0.00020996,2]
[403690612,1769483436017,-500.0,0.00020996,2]
[403690613,1769483436025,-500.0,0.00020996,2]